bitfinex/quotes_SOLUSD_20250805
["timestamp","ask_amount","ask_price","bid_price","bid_amount"]
[1754415441887,26.0,164.54,164.53,0.06]
[1754415442088,7.78336847,164.54,164.53,0.06]
[1754415443011,0.14216157,164.58,164.53,0.73]
[1754415443212,7.78336847,164.54,164.53,0.06]
[1754415443717,7.78336847,164.54,164.53,0.73]
[1754415444283,26.0,164.55,164.53,6.80791892]
[1754415444599,7.78336847,164.58,164.54,0.67]
[1754415444802,7.78336847,164.57,164.54,0.67]
[1754415445004,33.78336847,164.56,164.55,0.67]
[1754415445207,33.78336847,164.56,164.53,6.80791892]
[1754415445402,33.78336847,164.56,164.54,0.67]
[1754415445713,7.78336847,164.55,164.53,0.06]
[1754415446015,7.78336847,164.55,164.53,6.80786826]
[1754415446312,33.78336847,164.56,164.54,0.67]
[1754415446510,33.78336847,164.56,164.55,0.67]
[1754415446687,33.78336847,164.56,164.53,6.80786826]
[1754415446888,33.78336847,164.56,164.54,0.67]
[1754415447993,33.78336847,164.56,164.53,0.06]
[1754415448190,26.0,164.56,164.53,0.06]
[1754415448396,7.78336847,164.55,164.53,0.06]
[1754415448798,7.78336847,164.54,164.53,0.06]
[1754415449526,8.50336847,164.54,164.53,0.06]
[1754415449823,7.78336847,164.54,164.53,0.06]
[1754415450299,8.50336847,164.54,164.53,0.06]
[1754415450497,14.580918,164.54,164.53,0.06]
[1754415451213,18.67497817,164.54,164.53,0.06]
[1754415451533,12.59742864,164.54,164.53,0.06]
[1754415451697,4.09406017,164.54,164.53,0.06]
[1754415451894,3.17277435,164.58,164.53,8.51336847]
[1754415452125,4.09337042,164.59,164.57,7.78336847]
[1754415452428,26.0,164.59,164.58,0.67]
[1754415452590,11.87680212,164.59,164.55,0.67]
[1754415452791,26.03,164.6,164.56,8.45336847]
[1754415453008,30.09349017,164.59,164.57,0.67]
[1754415453241,26.0,164.59,164.57,0.67]
[1754415453901,26.0,164.59,164.54,21.27142336]
[1754415454106,7.78336847,164.59,164.55,8.46336847]
[1754415454411,0.03,164.6,164.56,8.46336847]
[1754415454412,37.90700118,164.6,164.56,8.46336847]
[1754415454615,7.78336847,164.58,164.56,0.68]
[1754415454929,11.87700118,164.59,164.56,0.68]
[1754415455096,4.09363271,164.59,164.56,0.68]
[1754415455301,11.87700118,164.59,164.56,0.68]
[1754415456227,7.78336847,164.58,164.53,95.91782867]
[1754415456393,7.78336847,164.57,164.54,0.68]
[1754415456919,7.78336847,164.57,164.55,0.68]
[1754415457831,26.0,164.59,164.56,8.46336847]
[1754415458001,26.0,164.59,164.57,0.68]
[1754415458206,33.78336847,164.59,164.55,0.68]
[1754415458503,7.78336847,164.59,164.56,0.68]
[1754415458729,4.09390682,164.59,164.56,0.68]
[1754415459525,4.09390682,164.59,164.53,6.13782867]
[1754415459526,10.88981778,164.59,164.54,0.68]
[1754415459713,11.87727529,164.59,164.55,8.46336847]
[1754415459908,4.09390682,164.59,164.56,0.68]
[1754415460224,26.0,164.58,164.57,0.68]
[1754415460599,39.85919862,164.59,164.54,7.78336847]
[1754415460826,39.85919862,164.59,164.53,6.13782111]
[1754415460827,11.87761341,164.58,164.55,0.68]
[1754415461126,26.0,164.54,164.53,0.06]
[1754415461311,43.95516294,164.54,164.53,0.06]
[1754415461631,44.67516294,164.54,164.53,0.06]
[1754415463330,59.78137851,164.54,164.53,0.06]
[1754415463532,15.10621557,164.53,164.51,0.06]
[1754415463826,54.97977498,164.52,164.51,0.06]
[1754415464028,55.69977498,164.52,164.51,0.06]
[1754415464731,55.55761341,164.52,164.51,0.06]
[1754415465038,70.66382898,164.52,164.51,0.06]
[1754415465425,76.74211733,164.52,164.51,0.06]
[1754415465815,76.8842789,164.52,164.51,0.06]
[1754415466016,56.67295251,164.5,164.49,0.2]
[1754415466220,60.76719745,164.5,164.49,0.2]
[1754415466440,61.48719745,164.5,164.49,0.2]
[1754415467339,104.46719745,164.5,164.49,0.2]
[1754415467508,110.5462248,164.5,164.49,0.2]
[1754415468149,15.24837714,164.49,164.47,0.06]
[1754415468433,69.94382898,164.48,164.47,0.06]
[1754415468626,0.14216157,164.44,164.43,0.2]
[1754415468944,0.14216157,164.42,164.41,0.2]
[1754415469111,51.62553004,164.42,164.41,0.2]
[1754415469452,69.1200637,164.42,164.41,0.2]
[1754415470005,62.17591698,164.42,164.41,0.2]
[1754415470204,68.25790213,164.42,164.41,0.2]
[1754415470625,73.13910416,164.42,164.41,0.2]
[1754415471721,88.24531973,164.42,164.41,0.2]
[1754415471921,88.96531973,164.42,164.41,0.2]
[1754415472122,96.89084977,164.42,164.41,0.2]
[1754415472334,26.0,164.39,164.37,0.2]
[1754415472536,7.78336847,164.38,164.37,0.2]
[1754415472732,18.39949062,164.38,164.37,0.2]
[1754415473644,24.62511733,164.38,164.37,0.2]
[1754415473850,83.4513329,164.38,164.37,0.2]
[1754415474230,82.7313329,164.38,164.37,0.2]
[1754415474749,87.40757756,164.38,164.37,0.2]
[1754415474958,10.61612215,164.38,164.37,0.2]
[1754415475129,23.07573528,164.38,164.37,0.88]
[1754415475322,23.07573528,164.38,164.37,0.2]
[1754415475943,29.15920042,164.38,164.37,0.2]
[1754415476146,88.10541599,164.38,164.37,0.2]
[1754415476551,88.24757756,164.38,164.37,0.2]
[1754415477039,10.61612215,164.38,164.37,0.2]
[1754415477235,10.61612215,164.38,164.37,0.88]
[1754415477236,23.07573528,164.38,164.37,0.88]
[1754415477654,23.07573528,164.38,164.37,0.2]
[1754415477853,87.40541599,164.38,164.37,0.2]
[1754415478057,88.12541599,164.38,164.37,0.2]
[1754415478229,88.26757756,164.38,164.37,0.2]
[1754415480869,15.10621557,164.37,164.36,0.2]
[1754415481070,28.42799027,164.37,164.36,0.2]
[1754415481377,80.40817132,164.37,164.36,0.2]
[1754415481661,65.30195575,164.37,164.36,0.2]
[1754415481831,22.16195575,164.37,164.36,0.2]
[1754415482030,22.16195575,164.37,164.36,0.88]
[1754415482428,9.70234262,164.37,164.36,19.42381853]
[1754415482735,8.26234262,164.37,164.36,19.42381853]
[1754415484759,20.72195575,164.37,164.36,0.2]
[1754415486132,8.26234262,164.37,164.36,0.2]
[1754415486330,20.72195575,164.37,164.36,0.2]
[1754415491468,21.39195575,164.37,164.36,0.2]
[1754415491781,8.93234262,164.37,164.36,0.2]
[1754415491952,20.72195575,164.37,164.36,0.2]
[1754415492942,21.39195575,164.37,164.36,0.2]
[1754415494046,27.47579099,164.37,164.36,0.2]
[1754415494479,21.39195575,164.37,164.36,0.2]
[1754415495289,46.72195575,164.37,164.36,0.2]
[1754415498643,47.39195575,164.37,164.36,0.2]
[1754415499780,8.26234262,164.37,164.36,19.20381853]
[1754415499993,7.80234262,164.37,164.36,19.20381853]
[1754415501806,7.80234262,164.37,164.36,19.3459801]
[1754415502382,1e-08,164.37,164.36,34.45219567]
[1754415502694,3.36100012,164.42,164.37,0.14216157]
[1754415502902,29.36100012,164.42,164.4,12.45961313]
[1754415503081,29.36100012,164.42,164.4,55.65961313]
[1754415503884,29.36100012,164.42,164.4,43.2]
[1754415504092,29.36100012,164.42,164.41,6.08235508]
[1754415504801,30.03100012,164.42,164.41,6.08235508]
[1754415505307,3.36100012,164.42,164.41,6.08235508]
[1754415506399,4.03100012,164.42,164.41,6.08235508]
[1754415507204,16.49061325,164.42,164.39,43.16]
[1754415507415,12.45961313,164.41,164.39,43.16]
[1754415507585,19.72482607,164.41,164.39,43.16]
[1754415507787,0.67,164.4,164.39,43.16]
[1754415509504,13.12961313,164.4,164.37,6.08369895]
[1754415509693,0.67,164.39,164.37,6.08369895]
[1754415509900,12.45961313,164.4,164.37,6.08369895]
[1754415510092,0.67,164.38,164.36,49.44411072]
[1754415510406,0.67,164.37,164.36,49.44411072]
[1754415511203,12.45961313,164.39,164.36,49.44411072]
[1754415511377,13.12961313,164.39,164.36,49.44411072]
[1754415512033,0.67,164.39,164.36,49.44411072]
[1754415512314,0.67,164.38,164.36,43.36]
[1754415512518,39.12961313,164.37,164.36,0.2]
[1754415513311,45.21344837,164.37,164.36,0.2]
[1754415514317,60.31966394,164.37,164.36,0.2]
[1754415515001,107.69111589,164.37,164.36,0.2]
[1754415515166,64.40895432,164.37,164.36,0.2]
[1754415515372,107.54895432,164.37,164.36,0.2]
[1754415516212,86.35890351,164.37,164.36,0.2]
[1754415516387,43.21890351,164.37,164.36,0.2]
[1754415516586,49.30273875,164.37,164.36,0.2]
[1754415518116,43.21890351,164.37,164.36,0.2]
[1754415518299,12.45961313,164.37,164.36,6.2842054]
[1754415518498,56.46766833,164.41,164.36,18.74381853]
[1754415518499,7.26521294,164.41,164.36,18.74381853]
[1754415518699,7.26521294,164.41,164.4,12.45961313]
[1754415519409,7.26521294,164.41,164.4,18.54233819]
[1754415519599,7.26521294,164.41,164.4,6.08272506]
[1754415520611,7.26521294,164.41,164.4,18.54233819]
[1754415520920,7.26521294,164.41,164.4,6.08272506]
[1754415522897,0.03,164.42,164.4,18.54233819]
[1754415523099,0.03,164.42,164.41,12.45961313]
[1754415523790,6.87903615,164.47,164.41,12.45961313]
[1754415523987,6.87903615,164.47,164.43,6.08161527]
[1754415524201,32.87903615,164.47,164.46,12.45961313]
[1754415524408,6.87903615,164.47,164.46,12.45961313]
[1754415524999,7.53903615,164.47,164.45,12.45961313]
[1754415525519,6.87903615,164.47,164.46,12.45961313]
[1754415526312,6.87903615,164.47,164.46,61.72011902]
[1754415528410,0.03,164.5,164.46,76.92138376]
[1754415528607,0.03,164.5,164.49,12.45961313]
[1754415528820,0.03,164.5,164.49,55.63961313]
[1754415530619,0.03,164.5,164.49,49.25939692]
[1754415530919,0.03,164.5,164.49,61.71901005]
[1754415532519,0.69,164.5,164.49,49.25939692]
[1754415532711,0.69,164.5,164.48,43.14]
[1754415532914,0.66,164.49,164.48,43.14]
[1754415533298,0.03,164.5,164.48,43.14]
[1754415533503,0.69,164.5,164.48,43.14]
[1754415535028,0.69,164.5,164.49,6.07939692]
[1754415535731,0.69,164.5,164.48,49.21964269]
[1754415535913,0.03,164.5,164.48,49.21964269]
[1754415536115,0.66,164.49,164.48,49.21964269]
[1754415538438,0.03,164.5,164.48,49.21964269]
[1754415538632,0.69,164.5,164.48,49.21964269]
[1754415538836,0.66,164.49,164.48,49.21964269]
[1754415539548,0.03,164.5,164.48,49.21964269]
[1754415539737,0.69,164.5,164.48,49.21964269]
[1754415540411,0.03,164.5,164.48,61.67925582]
[1754415541645,0.03,164.5,164.49,12.45961313]
[1754415541945,0.1,164.54,164.49,101.55961313]
[1754415542112,0.1,164.54,164.53,12.45961313]
[1754415542318,0.1,164.54,164.53,55.53961313]
[1754415542733,0.1,164.54,164.53,50.84420257]
[1754415543040,0.76,164.54,164.53,43.08]
[1754415543351,0.76,164.54,164.53,49.15791892]
[1754415545038,0.1,164.54,164.53,49.15791892]
[1754415545257,0.1,164.54,164.53,61.58263771]
[1754415546149,0.1,164.54,164.53,49.15791892]
[1754415546349,26.0,164.53,164.49,18.50411571]
[1754415546659,26.0,164.53,164.51,12.42471879]
[1754415546954,0.1,164.54,164.52,55.48471879]
[1754415547479,0.65,164.53,164.52,43.06]
[1754415548057,0.65,164.53,164.52,49.13828835]
[1754415549165,0.1,164.54,164.52,61.56300714]
[1754415549667,0.1,164.54,164.52,49.13828835]
[1754415550050,0.75,164.54,164.52,49.13828835]
[1754415551530,0.75,164.54,164.52,138.23828835]
[1754415552945,0.1,164.54,164.53,12.42471879]
[1754415553148,0.1,164.54,164.53,101.52471879]
[1754415553669,0.1,164.54,164.53,12.42471879]
[1754415554987,0.1,164.54,164.53,18.50263771]
[1754415555342,0.1,164.54,164.53,6.07791892]
[1754415555539,0.1,164.54,164.53,18.50263771]
[1754415561676,0.75,164.54,164.53,6.07791892]
[1754415561850,0.75,164.54,164.53,18.50263771]
[1754415562366,0.1,164.54,164.53,18.50263771]
[1754415563452,0.1,164.54,164.53,107.60263771]
[1754415564776,0.1,164.54,164.53,102.94104944]
[1754415567577,0.75,164.54,164.53,95.17791892]
[1754415568453,0.75,164.54,164.53,138.09791892]
[1754415570184,0.75,164.54,164.53,145.86104944]
[1754415570358,0.1,164.54,164.53,102.94104944]
[1754415570551,0.1,164.54,164.53,145.86104944]
[1754415570878,0.75,164.54,164.53,145.86104944]
[1754415571375,0.75,164.54,164.53,102.94104944]
[1754415571579,0.75,164.54,164.53,138.09791892]
[1754415571751,0.1,164.54,164.53,145.86104944]
[1754415572387,0.75,164.54,164.53,138.09791892]
[1754415572564,0.75,164.54,164.53,132.02]
[1754415572757,0.75,164.54,164.53,138.09791892]
[1754415572957,0.75,164.54,164.53,132.02]
[1754415573484,0.75,164.54,164.53,138.09791892]
[1754415574096,0.75,164.54,164.53,132.02]
[1754415574381,0.75,164.54,164.53,138.09791892]
[1754415574957,0.75,164.54,164.53,132.02]
[1754415575268,0.75,164.54,164.53,42.92]
[1754415577662,8.51313052,164.54,164.53,42.92]
[1754415577860,8.51313052,164.54,164.52,89.1]
[1754415578082,7.76313052,164.53,164.52,89.1]
[1754415578395,8.47313052,164.53,164.52,132.02]
[1754415579174,8.47313052,164.53,164.5,0.06]
[1754415579367,0.71,164.52,164.5,42.98]
[1754415579562,7.76313052,164.52,164.5,42.98]
[1754415579860,32.17757623,164.54,164.51,7.76313052]
[1754415579861,0.1,164.54,164.51,7.76313052]
[1754415580082,0.1,164.54,164.53,7.76313052]
[1754415581866,0.1,164.54,164.53,13.84104944]
[1754415583694,6.25138887,164.56,164.53,29.03584674]
[1754415583903,6.25138887,164.56,164.55,7.76313052]
[1754415585781,6.25138887,164.56,164.55,13.8403107]
[1754415588003,6.25138887,164.56,164.55,102.9403107]
[1754415590525,6.25138887,164.56,164.55,103.0003107]
[1754415590683,6.96138887,164.56,164.55,103.0003107]
[1754415591497,6.25138887,164.56,164.55,103.0003107]
[1754415597717,6.96138887,164.56,164.55,103.0003107]
[1754415598103,6.25138887,164.56,164.55,103.0003107]
[1754415599918,0.03,164.58,164.55,133.44163831]
[1754415600087,0.03,164.58,164.57,7.76313052]
[1754415600294,1e-08,164.59,164.58,15.24837714]
[1754415600518,1e-08,164.59,164.58,65.93150766]
[1754415601087,1e-08,164.59,164.58,50.68313052]
[1754415601335,0.71000001,164.59,164.58,42.92]
[1754415601886,8.47313053,164.59,164.58,42.92]
[1754415606022,40.54883379,164.59,164.56,42.92]
[1754415606233,7.76313052,164.57,164.55,0.06]
[1754415606418,7.76313052,164.56,164.55,42.98]
[1754415606721,8.48313052,164.56,164.55,0.06]
[1754415608630,8.48313052,164.56,164.53,0.06]
[1754415608792,7.76313052,164.54,164.53,42.98]
[1754415608992,8.48313052,164.54,164.53,42.98]
[1754415609905,8.48313052,164.54,164.53,0.06]
[1754415610634,0.72,164.54,164.53,0.06]
[1754415610836,4.09210315,164.55,164.53,42.98]
[1754415611046,8.48313052,164.56,164.53,42.98]
[1754415611208,0.72,164.56,164.53,42.98]
[1754415612698,0.72,164.56,164.54,6.07754953]
[1754415613437,4.09178776,164.57,164.55,50.68313052]
[1754415613609,1e-08,164.59,164.56,7.76313052]
[1754415613937,1e-08,164.59,164.58,7.76313052]
[1754415614640,1e-08,164.59,164.58,13.83920294]
[1754415614838,1e-08,164.59,164.58,13.89920294]
[1754415615743,1e-08,164.59,164.58,13.83920294]
[1754415616235,1e-08,164.59,164.58,6.07607242]
[1754415616440,1e-08,164.59,164.58,13.83920294]
[1754415616615,1e-08,164.59,164.58,56.75920294]
[1754415617324,1e-08,164.59,164.58,48.99607242]
[1754415617526,0.72000001,164.59,164.58,48.99607242]
[1754415618041,1e-08,164.59,164.58,48.99607242]
[1754415619221,0.72000001,164.59,164.58,48.99607242]
[1754415621139,0.72000001,164.59,164.58,42.92]
[1754415624548,8.48313053,164.59,164.58,42.92]
[1754415624731,0.72000001,164.59,164.58,42.92]
[1754415624928,1e-08,164.59,164.58,42.92]
[1754415625522,1e-08,164.59,164.58,6.07607242]
[1754415625828,0.72000001,164.59,164.58,48.97607242]
[1754415626033,8.48313053,164.59,164.58,48.97607242]
[1754415626246,8.48313053,164.59,164.58,42.9]
[1754415627642,8.48313053,164.59,164.57,42.9]
[1754415627838,7.76313052,164.58,164.57,42.9]
[1754415628043,8.48313052,164.58,164.57,42.9]
[1754415628218,8.48313052,164.58,164.56,49.0367069]
[1754415628421,0.72,164.57,164.56,49.0367069]
[1754415629245,7.76313052,164.58,164.56,49.0367069]
[1754415629452,8.48313053,164.59,164.56,49.0367069]
[1754415629669,1e-08,164.59,164.56,49.0367069]
[1754415629860,1e-08,164.59,164.56,56.79983742]
[1754415630751,1e-08,164.59,164.56,49.0367069]
[1754415630957,0.72000001,164.59,164.56,49.0367069]
[1754415631155,8.48313053,164.59,164.56,49.0367069]
[1754415631342,1e-08,164.59,164.57,7.76313052]
[1754415631540,1e-08,164.59,164.58,42.9]
[1754415632439,1e-08,164.59,164.58,48.97607242]
[1754415632762,8.48313053,164.59,164.57,6.07631182]
[1754415632956,8.48313053,164.59,164.58,42.9]
[1754415633473,0.72000001,164.59,164.58,42.9]
[1754415633786,1e-08,164.59,164.58,42.9]
[1754415634258,0.70000001,164.59,164.58,42.9]
[1754415634652,0.70000001,164.59,164.58,48.97607242]
[1754415635459,8.46313053,164.59,164.58,48.97607242]
[1754415638240,1e-08,164.59,164.58,48.97607242]
[1754415640770,1e-08,164.59,164.58,56.73920294]
[1754415640938,1e-08,164.59,164.58,48.97607242]
[1754415644368,1e-08,164.59,164.58,145.89920294]
[1754415644863,8.46313053,164.59,164.58,89.1]
[1754415645165,8.46313053,164.59,164.58,138.07607242]
[1754415647068,8.46313053,164.59,164.58,132.0]
[1754415647239,8.46313053,164.59,164.57,42.9]
[1754415647447,8.46313052,164.58,164.57,42.9]
[1754415647942,8.46313052,164.58,164.57,48.97644163]
[1754415648552,8.46313052,164.58,164.56,0.06]
[1754415648738,1e-08,164.59,164.56,0.06]
[1754415648739,8.46313052,164.57,164.56,0.06]
[1754415649256,0.7,164.57,164.56,0.06]
[1754415649441,8.46313052,164.57,164.56,0.06]
[1754415649644,7.98111095,164.57,164.56,0.06]
[1754415650574,26.0,164.54,164.53,0.06]
[1754415650738,37.85535511,164.54,164.5,0.06]
[1754415650940,33.76313052,164.51,164.5,0.06]
[1754415651668,7.76313052,164.51,164.5,6.13902735]
[1754415651840,7.76313052,164.51,164.5,42.96]
[1754415652037,8.46313052,164.51,164.5,42.96]
[1754415652670,8.46313052,164.51,164.5,49.03902735]
[1754415652966,7.76313052,164.52,164.5,49.03902735]
[1754415655382,7.76313052,164.54,164.5,57.40215787]
[1754415655561,7.76313052,164.54,164.51,0.6]
[1754415655766,7.76313052,164.54,164.52,42.9]
[1754415655958,8.46313052,164.54,164.52,42.9]
[1754415656157,33.76313052,164.55,164.52,42.9]
[1754415656358,34.46313052,164.55,164.53,6.07791892]
[1754415656556,33.76313052,164.55,164.53,6.07791892]
[1754415656757,0.7,164.54,164.53,6.07791892]
[1754415660378,0.7,164.54,164.52,48.97817506]
[1754415660379,8.46313052,164.54,164.52,48.97817506]
[1754415661480,0.7,164.54,164.52,48.97817506]
[1754415662389,7.76313052,164.56,164.52,49.57817506]
[1754415662683,12.54925235,164.56,164.52,49.57817506]
[1754415662893,8.46313052,164.56,164.52,49.57817506]
[1754415663562,8.46313052,164.56,164.52,138.67817506]
[1754415663763,7.76313052,164.55,164.52,138.67817506]
[1754415664088,8.41313052,164.55,164.52,138.07817506]
[1754415664390,8.41313052,164.54,164.53,42.9]
[1754415665701,8.41313052,164.54,164.51,0.06]
[1754415665867,7.76313052,164.52,164.51,0.06]
[1754415666492,8.41313052,164.52,164.51,0.06]
[1754415667402,14.49141887,164.52,164.51,0.06]
[1754415667567,18.57695984,164.52,164.51,0.06]
[1754415668394,14.49141887,164.52,164.51,0.06]
[1754415668774,33.82441203,164.52,164.51,0.06]
[1754415669987,0.14216157,164.51,164.48,0.06]
[1754415670192,49.01150766,164.49,164.48,0.06]
[1754415670502,53.74326457,164.49,164.41,42.9]
[1754415670693,7.76313052,164.42,164.41,49.58235508]
[1754415671973,7.76313052,164.42,164.41,48.98235508]
[1754415672286,7.76313052,164.42,164.41,42.712]
[1754415673180,7.76313052,164.42,164.39,42.9]
[1754415673384,7.76313052,164.4,164.39,48.9827853]
[1754415673595,7.76313052,164.41,164.39,48.9827853]
[1754415674472,7.76313052,164.41,164.39,49.5827853]
[1754415676196,7.76313052,164.41,164.39,48.9827853]
[1754415676380,7.76313052,164.41,164.39,49.5827853]
[1754415677292,7.76313052,164.43,164.4,0.6]
[1754415677596,7.76313052,164.44,164.4,0.6]
[1754415677777,7.76313052,164.44,164.41,0.6]
[1754415677978,7.76313052,164.44,164.42,43.52]
[1754415678318,7.76313052,164.43,164.42,42.92]
[1754415678485,26.0,164.45,164.42,42.92]
[1754415678826,7.76313052,164.45,164.43,6.08161527]
[1754415678982,7.76313052,164.46,164.43,6.08161527]
[1754415679176,7.76313052,164.46,164.43,6.68161527]
[1754415679498,7.76313052,164.46,164.43,6.08161527]
[1754415680007,8.41313052,164.46,164.43,6.08161527]
[1754415680708,7.76313052,164.46,164.43,6.68161527]
[1754415680882,7.76313052,164.46,164.44,0.6]
[1754415681086,26.0,164.47,164.43,6.08161527]
[1754415681283,38.87246997,164.49,164.44,8.36313052]
[1754415681493,39.52246997,164.49,164.45,50.68313052]
[1754415681894,47.28560049,164.49,164.45,51.28313052]
[1754415682102,12.87246997,164.49,164.46,7.76313052]
[1754415682281,12.87246997,164.49,164.48,7.76313052]
[1754415682475,12.87246997,164.49,164.48,51.28313052]
[1754415682686,12.87246997,164.49,164.48,57.36289705]
[1754415685386,12.87246997,164.49,164.48,48.99976653]
[1754415685683,12.87246997,164.49,164.48,56.76289705]
[1754415686821,13.52246997,164.49,164.48,42.92]
[1754415686985,13.52246997,164.49,164.48,42.9]
[1754415687425,21.28560049,164.49,164.48,42.9]
[1754415687608,21.28560049,164.49,164.47,42.9]
[1754415687804,7.76313052,164.48,164.47,42.9]
[1754415687994,8.41313052,164.48,164.47,42.9]
[1754415689994,7.76313052,164.48,164.47,42.9]
[1754415690319,8.41313052,164.48,164.47,42.9]
[1754415693009,8.41313052,164.48,164.44,6.08112167]
[1754415693217,7.76313052,164.46,164.45,42.9]
[1754415693520,8.42313052,164.46,164.45,42.9]
[1754415693899,8.42313052,164.46,164.42,6.08174885]
[1754415694098,7.76313052,164.43,164.42,6.08174885]
[1754415694321,7.76313052,164.43,164.42,48.98174885]
[1754415694505,8.42313052,164.44,164.42,48.98174885]
[1754415696018,7.76313052,164.43,164.42,42.9]
[1754415696223,8.42313052,164.43,164.42,42.9]
[1754415696519,8.42313052,164.43,164.41,42.96]
[1754415696726,7.76313052,164.42,164.41,42.96]
[1754415696898,34.42313052,164.42,164.41,42.96]
[1754415697634,34.42313052,164.42,164.41,0.06]
[1754415698325,40.50511567,164.42,164.41,0.06]
[1754415699612,55.75349281,164.42,164.41,0.06]
[1754415700138,15.10621557,164.4,164.38,0.2]
[1754415700432,7.76313052,164.39,164.38,0.2]
[1754415700839,8.42313052,164.39,164.38,0.2]
[1754415701336,14.50622559,164.39,164.38,0.2]
[1754415701496,7.76313052,164.39,164.38,6.28346514]
[1754415701690,7.76313052,164.4,164.38,6.28346514]
[1754415702532,7.76313052,164.41,164.39,0.6]
[1754415703237,7.76313052,164.41,164.38,6.28346514]
[1754415703799,7.76313052,164.41,164.38,6.88346514]
[1754415705094,7.76313052,164.42,164.38,6.88346514]
[1754415705329,33.76313052,164.42,164.38,6.28346514]
[1754415705533,33.76313052,164.42,164.39,0.6]
[1754415706037,7.76313052,164.43,164.39,0.6]
[1754415706236,33.76313052,164.44,164.4,0.6]
[1754415707098,33.76313052,164.44,164.41,0.6]
[1754415707099,26.0,164.44,164.41,0.6]
[1754415707297,26.0,164.44,164.42,6.08198515]
[1754415707512,33.76313052,164.44,164.42,6.08198515]
[1754415708521,33.76313052,164.44,164.41,6.08235508]
[1754415708827,34.42313052,164.44,164.41,6.08235508]
[1754415709026,8.42313052,164.43,164.41,6.08235508]
[1754415709325,8.42313052,164.42,164.4,6.08259103]
[1754415709707,0.66,164.42,164.4,6.08259103]
[1754415710103,0.66,164.42,164.39,49.00296024]
[1754415710317,7.76313052,164.4,164.38,0.2]
[1754415710633,7.76313052,164.42,164.38,14.64657578]
[1754415710803,7.76313052,164.42,164.38,14.04657578]
[1754415711002,7.76313052,164.42,164.38,14.64657578]
[1754415711202,34.42313052,164.43,164.38,14.64657578]
[1754415711811,34.42313052,164.43,164.38,14.04657578]
[1754415712032,34.42313052,164.43,164.39,0.6]
[1754415712724,34.42313052,164.43,164.4,6.08272506]
[1754415713102,0.66,164.42,164.4,6.08272506]
[1754415713416,33.76313052,164.43,164.4,6.08272506]
[1754415713929,34.42313052,164.43,164.4,6.08272506]
[1754415714933,34.42313052,164.43,164.39,6.08309507]
[1754415715445,34.42313052,164.43,164.39,14.44622559]
[1754415715804,8.42313052,164.46,164.41,7.76313052]
[1754415716142,12.53587782,164.48,164.43,7.76313052]
[1754415716312,37.87587782,164.48,164.43,7.76313052]
[1754415716512,0.66,164.47,164.43,7.76313052]
[1754415717137,33.79313052,164.48,164.44,6.08124543]
[1754415717343,0.66,164.46,164.44,6.08124543]
[1754415718518,0.66,164.46,164.43,6.08161527]
[1754415719608,7.76313052,164.47,164.43,6.08161527]
[1754415719812,0.66,164.45,164.43,6.08161527]
[1754415720448,0.03,164.46,164.43,13.84474579]
[1754415720756,0.69,164.46,164.43,6.08161527]
[1754415721410,0.66,164.45,164.43,6.08161527]
[1754415722407,0.03,164.46,164.43,6.08161527]
[1754415722611,0.69,164.46,164.43,6.08161527]
[1754415724545,0.03,164.46,164.43,13.84474579]
[1754415724840,0.03,164.46,164.45,7.76313052]
[1754415725038,0.03,164.46,164.45,50.66313052]
[1754415726246,26.03,164.48,164.45,161.64619527]
[1754415726247,0.03,164.48,164.45,161.64619527]
[1754415726414,0.03,164.48,164.47,7.76313052]
[1754415726614,0.03,164.48,164.47,96.86313052]
[1754415726837,0.03,164.48,164.47,97.46313052]
[1754415727753,0.03,164.48,164.47,140.36313052]
[1754415728122,0.03,164.48,164.47,146.44326671]
[1754415732257,0.03,164.48,164.47,138.08013619]
[1754415732454,0.74,164.48,164.47,138.08013619]
[1754415734857,0.03,164.48,164.47,145.84326671]